[Event "Titled Tuesday Blitz May 4 2021"]
[White "Sztokbant, Bernardo Vainzoff"]
[Black "Smietanska, Wiktoria"]
[WhiteFideId "2115956"]
[BlackFideId "21869359"]
[WhiteElo "2264"]
[BlackElo "1780"]
[Result "1-0"]
[Round "01"]
[TimeControl "180+1"]
[Date "2021.05.04"]
[WhiteClock "0:00:44"]
[BlackClock "0:01:25"]

1. d4 {[%clk 0:02:53]}  d5 {[%clk 0:02:58]} 2. c4 {[%clk 0:02:51]}  e5 {[%clk 0:02:58]} 3. dxe5 {[%clk 0:02:51]}  d4 {[%clk 0:02:58]} 4. Nf3 {[%clk 0:02:51]}  Nc6 {[%clk 0:02:58]} 5. a3 {[%clk 0:02:50]}  a5 {[%clk 0:02:56]} 6. e3 {[%clk 0:02:47]}  dxe3 {[%clk 0:02:55]} 7. Qxd8+ {[%clk 0:02:47]}  Nxd8 {[%clk 0:02:54]} 8. Bxe3 {[%clk 0:02:46]}  Bg4 {[%clk 0:02:53]} 9. Be2 {[%clk 0:02:45]}  Ne7 {[%clk 0:02:53]} 10. Nc3 {[%clk 0:02:43]}  Ndc6 {[%clk 0:02:51]} 11. Nb5 {[%clk 0:02:32]}  O-O-O {[%clk 0:02:49]} 12. Ng5 {[%clk 0:02:21]}  Bxe2 {[%clk 0:02:40]} 13. Kxe2 {[%clk 0:02:22]}  Nxe5 {[%clk 0:02:31]} 14. f4 {[%clk 0:02:17]}  h6 {[%clk 0:02:29]} 15. fxe5 {[%clk 0:02:08]}  hxg5 {[%clk 0:02:30]} 16. Bxg5 {[%clk 0:02:04]}  Rh5 {[%clk 0:02:30]} 17. h4 {[%clk 0:02:02]}  Nc6 {[%clk 0:02:25]} 18. Bxd8 {[%clk 0:01:58]}  Rxe5+ {[%clk 0:02:25]} 19. Kf3 {[%clk 0:01:55]}  Nxd8 {[%clk 0:02:23]} 20. Rhe1 {[%clk 0:01:45]}  Rf5+ {[%clk 0:02:21]} 21. Kg4 {[%clk 0:01:43]}  g6 {[%clk 0:02:13]} 22. Re8 {[%clk 0:01:41]}  Bd6 {[%clk 0:02:04]} 23. Rd1 {[%clk 0:01:34]}  Kd7 {[%clk 0:02:01]} 24. Rh8 {[%clk 0:01:23]}  Rf4+ {[%clk 0:01:56]} 25. Kh3 {[%clk 0:01:23]}  Rxc4 {[%clk 0:01:54]} 26. Nxd6 {[%clk 0:01:23]}  cxd6 {[%clk 0:01:53]} 27. g4 {[%clk 0:01:18]}  Ne6 {[%clk 0:01:46]} 28. Rf1 {[%clk 0:01:13]}  Ke7 {[%clk 0:01:43]} 29. Rh7 {[%clk 0:01:09]}  Rf4 {[%clk 0:01:38]} 30. Rxf4 {[%clk 0:01:08]}  Nxf4+ {[%clk 0:01:38]} 31. Kg3 {[%clk 0:01:08]}  Ne6 {[%clk 0:01:37]} 32. Rh8 {[%clk 0:01:01]}  Nf8 {[%clk 0:01:32]} 33. h5 {[%clk 0:01:01]}  gxh5 {[%clk 0:01:29]} 34. gxh5 {[%clk 0:01:01]}  d5 {[%clk 0:01:30]} 35. h6 {[%clk 0:00:55]}  d4 {[%clk 0:01:29]} 36. h7 {[%clk 0:00:51]}  Ng6 {[%clk 0:01:29]} 37. Rg8 {[%clk 0:00:47]}  d3 {[%clk 0:01:28]} 38. Rxg6 {[%clk 0:00:46]}  fxg6 {[%clk 0:01:28]} 39. h8=Q {[%clk 0:00:46]}  d2 {[%clk 0:01:27]} 40. Qd4 {[%clk 0:00:44]}  d1=Q {[%clk 0:01:25]} 41. Qxd1 {[%clk 0:00:44]} 1-0


[Site "https://www.chess.com"]

[Event "Titled Tuesday Blitz May 4 2021"]
[White "Tang, Andrew"]
[Black "Matthiesen, Martin"]
[WhiteFideId "2059630"]
[BlackFideId "1404067"]
[WhiteElo "2584"]
[BlackElo "2337"]
[Result "1-0"]
[Round "01"]
[TimeControl "180+1"]
[Date "2021.05.04"]
[WhiteClock "0:00:07"]
[BlackClock "0:00:01"]

1. d4 {[%clk 0:02:59]}  Nf6 {[%clk 0:02:59]} 2. c4 {[%clk 0:02:42]}  e6 {[%clk 0:02:59]} 3. Nc3 {[%clk 0:02:42]}  Bb4 {[%clk 0:02:57]} 4. Qc2 {[%clk 0:02:42]}  O-O {[%clk 0:02:57]} 5. Nf3 {[%clk 0:02:39]}  c5 {[%clk 0:02:44]} 6. dxc5 {[%clk 0:02:39]}  Na6 {[%clk 0:02:42]} 7. g3 {[%clk 0:02:35]}  Nxc5 {[%clk 0:02:40]} 8. Bg2 {[%clk 0:02:35]}  Nce4 {[%clk 0:02:35]} 9. O-O {[%clk 0:02:35]}  Bxc3 {[%clk 0:02:13]} 10. bxc3 {[%clk 0:02:36]}  d5 {[%clk 0:02:14]} 11. Nd4 {[%clk 0:02:25]}  Qc7 {[%clk 0:02:05]} 12. cxd5 {[%clk 0:02:21]}  exd5 {[%clk 0:02:04]} 13. Ba3 {[%clk 0:02:11]}  Re8 {[%clk 0:02:01]} 14. Rac1 {[%clk 0:02:11]}  Bd7 {[%clk 0:01:35]} 15. Qb2 {[%clk 0:01:48]}  Rac8 {[%clk 0:01:29]} 16. e3 {[%clk 0:01:39]}  b6 {[%clk 0:01:20]} 17. Rfe1 {[%clk 0:01:34]}  h5 {[%clk 0:01:17]} 18. Qb4 {[%clk 0:01:22]}  h4 {[%clk 0:01:09]} 19. Ne2 {[%clk 0:01:14]}  hxg3 {[%clk 0:00:51]} 20. hxg3 {[%clk 0:01:15]}  a5 {[%clk 0:00:39]} 21. Qd4 {[%clk 0:01:11]}  Bb5 {[%clk 0:00:35]} 22. Nf4 {[%clk 0:01:01]}  Bc4 {[%clk 0:00:26]} 23. Rc2 {[%clk 0:00:56]}  Qd7 {[%clk 0:00:19]} 24. Bh3 {[%clk 0:00:52]}  Qa4 {[%clk 0:00:17]} 25. Bxc8 {[%clk 0:00:41]}  Qxc2 {[%clk 0:00:16]} 26. Nh3 {[%clk 0:00:26]}  Rxc8 {[%clk 0:00:16]} 27. Rc1 {[%clk 0:00:23]}  Qxa2 {[%clk 0:00:15]} 28. Be7 {[%clk 0:00:23]}  Qa4 {[%clk 0:00:13]} 29. Qxb6 {[%clk 0:00:23]}  Qd7 {[%clk 0:00:12]} 30. Bxf6 {[%clk 0:00:22]}  Nxf6 {[%clk 0:00:12]} 31. Nf4 {[%clk 0:00:22]}  Qf5 {[%clk 0:00:12]} 32. Qxa5 {[%clk 0:00:22]}  Re8 {[%clk 0:00:11]} 33. Qc7 {[%clk 0:00:22]}  g5 {[%clk 0:00:11]} 34. Ng2 {[%clk 0:00:20]}  Ng4 {[%clk 0:00:10]} 35. f4 {[%clk 0:00:16]}  Nxe3 {[%clk 0:00:09]} 36. Re1 {[%clk 0:00:14]}  Qd3 {[%clk 0:00:08]} 37. Qc5 {[%clk 0:00:08]}  d4 {[%clk 0:00:05]} 38. Qxg5+ {[%clk 0:00:06]}  Kf8 {[%clk 0:00:03]} 39. Qh6+ {[%clk 0:00:04]}  Kg8 {[%clk 0:00:03]} 40. Qg5+ {[%clk 0:00:05]}  Kf8 {[%clk 0:00:03]} 41. Qc5+ {[%clk 0:00:05]}  Kg8 {[%clk 0:00:03]} 42. Qxd4 {[%clk 0:00:06]}  Qxd4 {[%clk 0:00:01]} 43. cxd4 {[%clk 0:00:07]} 1-0


[Site "https://www.chess.com"]

[Event "Titled Tuesday Blitz May 4 2021"]
[White "Tarasova, Viktoriya"]
[Black "Vignesh, N R"]
[WhiteFideId "4175840"]
[BlackFideId "25012215"]
[WhiteElo "2182"]
[BlackElo "2401"]
[Result "0-1"]
[Round "01"]
[TimeControl "180+1"]
[Date "2021.05.04"]
[WhiteClock "0:00:04"]
[BlackClock "0:00:18"]

1. d4 {[%clk 0:03:00]}  Nf6 {[%clk 0:02:59]} 2. c4 {[%clk 0:03:01]}  e6 {[%clk 0:02:58]} 3. Nc3 {[%clk 0:03:00]}  Bb4 {[%clk 0:02:56]} 4. Nf3 {[%clk 0:03:00]}  O-O {[%clk 0:02:54]} 5. Bg5 {[%clk 0:02:58]}  d5 {[%clk 0:02:51]} 6. cxd5 {[%clk 0:02:57]}  exd5 {[%clk 0:02:50]} 7. Qc2 {[%clk 0:02:56]}  h6 {[%clk 0:02:49]} 8. Bh4 {[%clk 0:02:56]}  c6 {[%clk 0:02:34]} 9. e3 {[%clk 0:02:55]}  Re8 {[%clk 0:02:33]} 10. Bd3 {[%clk 0:02:54]}  Bd6 {[%clk 0:02:29]} 11. O-O {[%clk 0:02:42]}  Bg4 {[%clk 0:02:29]} 12. Nd2 {[%clk 0:02:40]}  Nbd7 {[%clk 0:02:24]} 13. Bg3 {[%clk 0:02:34]}  Bxg3 {[%clk 0:02:20]} 14. hxg3 {[%clk 0:02:34]}  c5 {[%clk 0:02:14]} 15. dxc5 {[%clk 0:02:28]}  Nxc5 {[%clk 0:02:15]} 16. Bf5 {[%clk 0:02:25]}  Bxf5 {[%clk 0:01:48]} 17. Qxf5 {[%clk 0:02:25]}  Qb6 {[%clk 0:01:49]} 18. Rab1 {[%clk 0:02:16]}  Rad8 {[%clk 0:01:47]} 19. Rfd1 {[%clk 0:02:03]}  d4 {[%clk 0:01:43]} 20. Nc4 {[%clk 0:01:54]}  Qb4 {[%clk 0:01:18]} 21. exd4 {[%clk 0:01:41]}  Ne6 {[%clk 0:01:17]} 22. d5 {[%clk 0:01:23]}  Qxc4 {[%clk 0:01:04]} 23. dxe6 {[%clk 0:01:20]}  fxe6 {[%clk 0:00:57]} 24. Qf3 {[%clk 0:01:15]}  Nd5 {[%clk 0:00:53]} 25. Ne4 {[%clk 0:00:49]}  Qxa2 {[%clk 0:00:41]} 26. Ra1 {[%clk 0:00:40]}  Qxb2 {[%clk 0:00:40]} 27. Rxa7 {[%clk 0:00:39]}  Qe5 {[%clk 0:00:33]} 28. Rxb7 {[%clk 0:00:34]}  Rf8 {[%clk 0:00:27]} 29. Qg4 {[%clk 0:00:30]}  Ne3 {[%clk 0:00:23]} 30. fxe3 {[%clk 0:00:25]}  Rxd1+ {[%clk 0:00:22]} 31. Qxd1 {[%clk 0:00:26]}  Qxe4 {[%clk 0:00:22]} 32. Qb3 {[%clk 0:00:22]}  Qe5 {[%clk 0:00:20]} 33. Rb6 {[%clk 0:00:19]}  Qxg3 {[%clk 0:00:17]} 34. Qxe6+ {[%clk 0:00:19]}  Kh8 {[%clk 0:00:16]} 35. Rb2 {[%clk 0:00:14]}  Rd8 {[%clk 0:00:14]} 36. Rf2 {[%clk 0:00:12]}  Rd1+ {[%clk 0:00:10]} 37. Rf1 {[%clk 0:00:12]}  Rd8 {[%clk 0:00:10]} 38. Qe7 {[%clk 0:00:12]}  Rg8 {[%clk 0:00:09]} 39. Qe4 {[%clk 0:00:12]}  Qg5 {[%clk 0:00:08]} 40. Qf4 {[%clk 0:00:12]}  Qe7 {[%clk 0:00:08]} 41. e4 {[%clk 0:00:11]}  Re8 {[%clk 0:00:08]} 42. Re1 {[%clk 0:00:11]}  Qc5+ {[%clk 0:00:08]} 43. Kh2 {[%clk 0:00:11]}  Rf8 {[%clk 0:00:08]} 44. Qg3 {[%clk 0:00:10]}  Qh5+ {[%clk 0:00:07]} 45. Kg1 {[%clk 0:00:10]}  Qc5+ {[%clk 0:00:07]} 46. Kh2 {[%clk 0:00:10]}  Re8 {[%clk 0:00:07]} 47. e5 {[%clk 0:00:10]}  Re6 {[%clk 0:00:07]} 48. Qe3 {[%clk 0:00:09]}  Qe7 {[%clk 0:00:06]} 49. Qe4 {[%clk 0:00:09]}  Kg8 {[%clk 0:00:06]} 50. Kg1 {[%clk 0:00:09]}  Kf7 {[%clk 0:00:07]} 51. Qf5+ {[%clk 0:00:09]}  Kg8 {[%clk 0:00:07]} 52. Qe4 {[%clk 0:00:09]}  Qf7 {[%clk 0:00:07]} 53. Rf1 {[%clk 0:00:08]}  Qe8 {[%clk 0:00:07]} 54. Re1 {[%clk 0:00:07]}  Qe7 {[%clk 0:00:07]} 55. Qd5 {[%clk 0:00:07]}  Qf7 {[%clk 0:00:07]} 56. Qa8+ {[%clk 0:00:07]}  Re8 {[%clk 0:00:07]} 57. Qe4 {[%clk 0:00:08]}  Qe6 {[%clk 0:00:07]} 58. Qe3 {[%clk 0:00:08]}  Re7 {[%clk 0:00:07]} 59. Qe4 {[%clk 0:00:08]}  Rf7 {[%clk 0:00:07]} 60. Kh2 {[%clk 0:00:08]}  Rf5 {[%clk 0:00:07]} 61. Kg1 {[%clk 0:00:08]}  Qb6+ {[%clk 0:00:06]} 62. Qe3 {[%clk 0:00:09]}  Qxe3+ {[%clk 0:00:05]} 63. Rxe3 {[%clk 0:00:08]}  Kf7 {[%clk 0:00:06]} 64. e6+ {[%clk 0:00:08]}  Ke7 {[%clk 0:00:07]} 65. Kh2 {[%clk 0:00:09]}  Rf6 {[%clk 0:00:07]} 66. Rg3 {[%clk 0:00:09]}  g5 {[%clk 0:00:07]} 67. Kh3 {[%clk 0:00:09]}  Rxe6 {[%clk 0:00:07]} 68. Ra3 {[%clk 0:00:10]}  Kf6 {[%clk 0:00:07]} 69. Kh2 {[%clk 0:00:10]}  Kg6 {[%clk 0:00:08]} 70. Rf3 {[%clk 0:00:10]}  h5 {[%clk 0:00:08]} 71. Ra3 {[%clk 0:00:11]}  h4 {[%clk 0:00:09]} 72. Ra8 {[%clk 0:00:12]}  Kh5 {[%clk 0:00:09]} 73. Rh8+ {[%clk 0:00:09]}  Kg4 {[%clk 0:00:10]} 74. Rg8 {[%clk 0:00:09]}  Re4 {[%clk 0:00:10]} 75. Kg1 {[%clk 0:00:08]}  Re1+ {[%clk 0:00:10]} 76. Kf2 {[%clk 0:00:07]}  Ra1 {[%clk 0:00:11]} 77. Rb8 {[%clk 0:00:07]}  Ra2+ {[%clk 0:00:11]} 78. Kg1 {[%clk 0:00:07]}  Ra4 {[%clk 0:00:11]} 79. Rb2 {[%clk 0:00:07]}  Ra3 {[%clk 0:00:11]} 80. Kh2 {[%clk 0:00:06]}  Ra4 {[%clk 0:00:10]} 81. Rc2 {[%clk 0:00:06]}  Rf4 {[%clk 0:00:11]} 82. Rb2 {[%clk 0:00:06]}  Kh5 {[%clk 0:00:11]} 83. Rc2 {[%clk 0:00:06]}  g4 {[%clk 0:00:12]} 84. Rc5+ {[%clk 0:00:06]}  Kg6 {[%clk 0:00:12]} 85. Rc6+ {[%clk 0:00:06]}  Rf6 {[%clk 0:00:12]} 86. Rc4 {[%clk 0:00:05]}  Kg5 {[%clk 0:00:12]} 87. Rc5+ {[%clk 0:00:05]}  Rf5 {[%clk 0:00:13]} 88. Rc8 {[%clk 0:00:05]}  Rf1 {[%clk 0:00:12]} 89. Rc5+ {[%clk 0:00:04]}  Kf4 {[%clk 0:00:12]} 90. Rc4+ {[%clk 0:00:04]}  Kf5 {[%clk 0:00:12]} 91. Rc5+ {[%clk 0:00:05]}  Kg6 {[%clk 0:00:13]} 92. Rc6+ {[%clk 0:00:05]}  Kg5 {[%clk 0:00:13]} 93. Rc5+ {[%clk 0:00:05]}  Kf6 {[%clk 0:00:14]} 94. Rc6+ {[%clk 0:00:05]}  Ke5 {[%clk 0:00:14]} 95. Rc5+ {[%clk 0:00:06]}  Kd6 {[%clk 0:00:14]} 96. Rc4 {[%clk 0:00:05]}  g3+ {[%clk 0:00:14]} 97. Kh3 {[%clk 0:00:06]}  Rh1+ {[%clk 0:00:14]} 98. Kg4 {[%clk 0:00:06]}  Rh2 {[%clk 0:00:15]} 99. Rc3 {[%clk 0:00:05]}  Rxg2 {[%clk 0:00:14]} 100. Kxh4 {[%clk 0:00:05]}  Rh2+ {[%clk 0:00:14]} 101. Kxg3 {[%clk 0:00:04]}  Rd2 {[%clk 0:00:15]} 102. Rd3+ {[%clk 0:00:05]}  Rxd3+ {[%clk 0:00:14]} 103. Kg4 {[%clk 0:00:04]}  Rd5 {[%clk 0:00:15]} 104. Kf4 {[%clk 0:00:04]}  Re5 {[%clk 0:00:16]} 105. Kg4 {[%clk 0:00:04]}  Ke6 {[%clk 0:00:17]} 106. Kf4 {[%clk 0:00:04]}  Rf5+ {[%clk 0:00:18]} 0-1


[Site "https://www.chess.com"]

[Event "Titled Tuesday Blitz May 4 2021"]
[White "Tari, Aryan"]
[Black "Manukyan, Sargis A."]
[WhiteFideId "1510045"]
[BlackFideId "13303970"]
[WhiteElo "2656"]
[BlackElo "2187"]
[Result "1-0"]
[Round "01"]
[TimeControl "180+1"]
[Date "2021.05.04"]
[WhiteClock "0:00:07"]
[BlackClock "0:00:06"]

1. e4 {[%clk 0:03:00]}  c5 {[%clk 0:02:59]} 2. Nc3 {[%clk 0:02:59]}  d6 {[%clk 0:02:58]} 3. f4 {[%clk 0:02:59]}  Nc6 {[%clk 0:02:56]} 4. Nf3 {[%clk 0:02:59]}  g6 {[%clk 0:02:55]} 5. Bb5 {[%clk 0:02:59]}  Bg7 {[%clk 0:02:55]} 6. Bxc6+ {[%clk 0:02:58]}  bxc6 {[%clk 0:02:54]} 7. d3 {[%clk 0:02:58]}  e6 {[%clk 0:02:54]} 8. O-O {[%clk 0:02:57]}  Ne7 {[%clk 0:02:55]} 9. Qe1 {[%clk 0:02:57]}  O-O {[%clk 0:02:55]} 10. Bd2 {[%clk 0:02:34]}  f5 {[%clk 0:02:53]} 11. e5 {[%clk 0:02:29]}  d5 {[%clk 0:02:51]} 12. Na4 {[%clk 0:02:27]}  c4 {[%clk 0:02:50]} 13. Ba5 {[%clk 0:02:21]}  Qe8 {[%clk 0:02:45]} 14. Nc5 {[%clk 0:02:16]}  cxd3 {[%clk 0:02:43]} 15. cxd3 {[%clk 0:02:17]}  Kh8 {[%clk 0:02:37]} 16. Nd4 {[%clk 0:02:16]}  Ng8 {[%clk 0:02:37]} 17. Rc1 {[%clk 0:02:13]}  Rf7 {[%clk 0:02:35]} 18. h3 {[%clk 0:02:08]}  Bf8 {[%clk 0:02:36]} 19. b4 {[%clk 0:02:04]}  Rg7 {[%clk 0:02:21]} 20. Qe3 {[%clk 0:02:03]}  Nh6 {[%clk 0:02:20]} 21. Rc2 {[%clk 0:01:46]}  Nf7 {[%clk 0:02:20]} 22. Rfc1 {[%clk 0:01:28]}  g5 {[%clk 0:02:14]} 23. Ncb3 {[%clk 0:01:28]}  gxf4 {[%clk 0:02:08]} 24. Qxf4 {[%clk 0:01:29]}  Bd7 {[%clk 0:02:08]} 25. Nxc6 {[%clk 0:01:27]}  Bxc6 {[%clk 0:02:04]} 26. Rxc6 {[%clk 0:01:26]}  Rg6 {[%clk 0:02:04]} 27. Qd4 {[%clk 0:01:00]}  Bh6 {[%clk 0:02:00]} 28. R1c2 {[%clk 0:01:00]}  Qg8 {[%clk 0:01:56]} 29. Nc5 {[%clk 0:00:42]}  Re8 {[%clk 0:01:55]} 30. Nd7 {[%clk 0:00:40]}  Rg3 {[%clk 0:01:52]} 31. Nf6 {[%clk 0:00:28]}  Qg6 {[%clk 0:01:38]} 32. Rxe6 {[%clk 0:00:24]}  Rg8 {[%clk 0:00:30]} 33. Nxg8 {[%clk 0:00:22]}  Qxe6 {[%clk 0:00:27]} 34. Nxh6 {[%clk 0:00:22]}  Nxh6 {[%clk 0:00:27]} 35. Qh4 {[%clk 0:00:20]}  Rg8 {[%clk 0:00:21]} 36. Qf6+ {[%clk 0:00:19]}  Qxf6 {[%clk 0:00:22]} 37. exf6 {[%clk 0:00:20]}  Rf8 {[%clk 0:00:22]} 38. Bc7 {[%clk 0:00:18]}  Nf7 {[%clk 0:00:20]} 39. Bf4 {[%clk 0:00:18]}  h6 {[%clk 0:00:20]} 40. Rc7 {[%clk 0:00:17]}  Kh7 {[%clk 0:00:20]} 41. Rxa7 {[%clk 0:00:17]}  Kg6 {[%clk 0:00:20]} 42. b5 {[%clk 0:00:17]}  Rc8 {[%clk 0:00:20]} 43. b6 {[%clk 0:00:17]}  Nd8 {[%clk 0:00:11]} 44. b7 {[%clk 0:00:15]}  Nxb7 {[%clk 0:00:12]} 45. Rxb7 {[%clk 0:00:15]}  Rc2 {[%clk 0:00:11]} 46. a4 {[%clk 0:00:15]}  Kxf6 {[%clk 0:00:11]} 47. Rb6+ {[%clk 0:00:15]}  Kg7 {[%clk 0:00:11]} 48. a5 {[%clk 0:00:16]}  Ra2 {[%clk 0:00:11]} 49. a6 {[%clk 0:00:16]}  d4 {[%clk 0:00:12]} 50. Be5+ {[%clk 0:00:17]}  Kf7 {[%clk 0:00:12]} 51. Bxd4 {[%clk 0:00:17]}  f4 {[%clk 0:00:13]} 52. Be5 {[%clk 0:00:17]}  h5 {[%clk 0:00:14]} 53. Bxf4 {[%clk 0:00:17]}  Ra4 {[%clk 0:00:13]} 54. Be5 {[%clk 0:00:17]}  Ra5 {[%clk 0:00:13]} 55. d4 {[%clk 0:00:17]}  Ra4 {[%clk 0:00:13]} 56. d5 {[%clk 0:00:18]}  Ra5 {[%clk 0:00:13]} 57. Bb8 {[%clk 0:00:16]}  Ke7 {[%clk 0:00:12]} 58. d6+ {[%clk 0:00:15]}  Kd7 {[%clk 0:00:12]} 59. a7 {[%clk 0:00:14]}  h4 {[%clk 0:00:13]} 60. Rb7+ {[%clk 0:00:14]}  Kc8 {[%clk 0:00:13]} 61. Rh7 {[%clk 0:00:13]}  Ra1+ {[%clk 0:00:09]} 62. Kh2 {[%clk 0:00:13]}  Ra2 {[%clk 0:00:09]} 63. Rxh4 {[%clk 0:00:08]}  Kb7 {[%clk 0:00:09]} 64. Rh7+ {[%clk 0:00:09]}  Ka8 {[%clk 0:00:09]} 65. Bc7 {[%clk 0:00:08]}  Kb7 {[%clk 0:00:08]} 66. Rh8 {[%clk 0:00:08]}  Kxa7 {[%clk 0:00:07]} 67. d7 {[%clk 0:00:07]}  Rd2 {[%clk 0:00:06]} 68. d8=Q {[%clk 0:00:08]}  Rb2 {[%clk 0:00:06]} 69. Qa8# {[%clk 0:00:07]} 1-0


[Site "https://www.chess.com"]

[Event "Titled Tuesday Blitz May 4 2021"]
[White "Terletsky, Oleg"]
[Black "Bellahcene, Bilel"]
[WhiteFideId "14116774"]
[BlackFideId "696358"]
[WhiteElo "2094"]
[BlackElo "2493"]
[Result "0-1"]
[Round "01"]
[TimeControl "180+1"]
[Date "2021.05.04"]
[WhiteClock "0:00:02"]
[BlackClock "0:00:09"]

1. e4 {[%clk 0:03:00]}  c5 {[%clk 0:01:37]} 2. Nf3 {[%clk 0:02:57]}  d6 {[%clk 0:01:35]} 3. d4 {[%clk 0:02:58]}  cxd4 {[%clk 0:01:34]} 4. Nxd4 {[%clk 0:02:58]}  Nf6 {[%clk 0:01:34]} 5. Nc3 {[%clk 0:02:59]}  a6 {[%clk 0:01:32]} 6. Bc4 {[%clk 0:02:59]}  g6 {[%clk 0:01:29]} 7. f3 {[%clk 0:02:51]}  Nbd7 {[%clk 0:01:28]} 8. Be3 {[%clk 0:02:49]}  b5 {[%clk 0:01:28]} 9. Bb3 {[%clk 0:02:48]}  Bb7 {[%clk 0:01:28]} 10. Qd2 {[%clk 0:02:47]}  h5 {[%clk 0:01:26]} 11. a4 {[%clk 0:02:44]}  bxa4 {[%clk 0:01:25]} 12. Nxa4 {[%clk 0:02:42]}  Rc8 {[%clk 0:01:23]} 13. c4 {[%clk 0:02:38]}  Ne5 {[%clk 0:01:07]} 14. Rc1 {[%clk 0:02:36]}  h4 {[%clk 0:01:05]} 15. h3 {[%clk 0:02:20]}  Bxe4 {[%clk 0:00:54]} 16. fxe4 {[%clk 0:02:04]}  Nxe4 {[%clk 0:00:55]} 17. Qc2 {[%clk 0:01:53]}  Qa5+ {[%clk 0:00:53]} 18. Nc3 {[%clk 0:01:13]}  Ng3 {[%clk 0:00:52]} 19. Ba4+ {[%clk 0:00:46]}  Nd7 {[%clk 0:00:43]} 20. Rg1 {[%clk 0:00:36]}  Rxc4 {[%clk 0:00:41]} 21. Qb3 {[%clk 0:00:20]}  Rb4 {[%clk 0:00:37]} 22. Bxd7+ {[%clk 0:00:16]}  Kxd7 {[%clk 0:00:35]} 23. Qxf7 {[%clk 0:00:16]}  Qe5 {[%clk 0:00:32]} 24. Kd2 {[%clk 0:00:12]}  Rxd4+ {[%clk 0:00:29]} 25. Bxd4 {[%clk 0:00:12]}  Qxd4+ {[%clk 0:00:30]} 26. Kc2 {[%clk 0:00:12]}  Bh6 {[%clk 0:00:23]} 27. Rcd1 {[%clk 0:00:11]}  Qf6 {[%clk 0:00:15]} 28. Qxf6 {[%clk 0:00:09]}  exf6 {[%clk 0:00:16]} 29. Rge1 {[%clk 0:00:09]}  Bf4 {[%clk 0:00:15]} 30. Ne4 {[%clk 0:00:09]}  Be5 {[%clk 0:00:15]} 31. Nxg3 {[%clk 0:00:08]}  hxg3 {[%clk 0:00:12]} 32. Re4 {[%clk 0:00:08]}  f5 {[%clk 0:00:11]} 33. Rc4 {[%clk 0:00:08]}  Rb8 {[%clk 0:00:10]} 34. b3 {[%clk 0:00:08]}  Ke6 {[%clk 0:00:10]} 35. Rd3 {[%clk 0:00:08]}  g5 {[%clk 0:00:10]} 36. Ra4 {[%clk 0:00:08]}  Rc8+ {[%clk 0:00:10]} 37. Kd2 {[%clk 0:00:08]}  Rc6 {[%clk 0:00:10]} 38. Rc4 {[%clk 0:00:08]}  Rb6 {[%clk 0:00:09]} 39. Kc2 {[%clk 0:00:08]}  f4 {[%clk 0:00:10]} 40. Ra4 {[%clk 0:00:06]}  Kf5 {[%clk 0:00:10]} 41. Rc4 {[%clk 0:00:06]}  g4 {[%clk 0:00:10]} 42. hxg4+ {[%clk 0:00:06]}  Kxg4 {[%clk 0:00:11]} 43. Rf3 {[%clk 0:00:06]}  Rb8 {[%clk 0:00:06]} 44. Rc6 {[%clk 0:00:06]}  Rh8 {[%clk 0:00:06]} 45. Kd3 {[%clk 0:00:06]}  Rh2 {[%clk 0:00:07]} 46. Rc2 {[%clk 0:00:03]}  Rxg2 {[%clk 0:00:07]} 47. Rxf4+ {[%clk 0:00:02]}  Bxf4 {[%clk 0:00:07]} 48. Rxg2 {[%clk 0:00:02]}  Kf3 {[%clk 0:00:08]} 49. Rc2 {[%clk 0:00:02]}  g2 {[%clk 0:00:09]} 0-1


[Site "https://www.chess.com"]

[Event "Titled Tuesday Blitz May 4 2021"]
[White "The_filthy"]
[Black "Jumabayev, Rinat"]
[BlackFideId "13702661"]
[WhiteElo "2400"]
[BlackElo "2535"]
[Result "0-1"]
[Round "01"]
[TimeControl "180+1"]
[Date "2021.05.04"]
[WhiteClock "0:00:38"]
[BlackClock "0:01:22"]

1. e4 {[%clk 0:03:00]}  c5 {[%clk 0:02:59]} 2. Nf3 {[%clk 0:02:55]}  d6 {[%clk 0:02:59]} 3. d4 {[%clk 0:02:55]}  cxd4 {[%clk 0:03:00]} 4. Nxd4 {[%clk 0:02:56]}  Nf6 {[%clk 0:03:00]} 5. Nc3 {[%clk 0:02:56]}  a6 {[%clk 0:03:01]} 6. Be3 {[%clk 0:02:55]}  e6 {[%clk 0:03:00]} 7. f3 {[%clk 0:02:54]}  b5 {[%clk 0:03:01]} 8. Qd2 {[%clk 0:02:54]}  b4 {[%clk 0:03:00]} 9. Nce2 {[%clk 0:02:53]}  e5 {[%clk 0:02:48]} 10. Nf5 {[%clk 0:02:42]}  d5 {[%clk 0:02:36]} 11. O-O-O {[%clk 0:02:22]}  d4 {[%clk 0:02:33]} 12. Bf2 {[%clk 0:02:19]}  Nc6 {[%clk 0:02:30]} 13. Kb1 {[%clk 0:02:17]}  Be6 {[%clk 0:02:29]} 14. Nc1 {[%clk 0:02:16]}  g6 {[%clk 0:02:23]} 15. Ng3 {[%clk 0:02:11]}  h5 {[%clk 0:02:21]} 16. h4 {[%clk 0:02:10]}  Bh6 {[%clk 0:02:20]} 17. Qe1 {[%clk 0:02:05]}  Nd7 {[%clk 0:02:20]} 18. Nd3 {[%clk 0:01:48]}  a5 {[%clk 0:02:18]} 19. Ne2 {[%clk 0:01:46]}  Qb6 {[%clk 0:02:06]} 20. f4 {[%clk 0:01:24]}  a4 {[%clk 0:02:03]} 21. Nxe5 {[%clk 0:01:24]}  Ndxe5 {[%clk 0:01:59]} 22. fxe5 {[%clk 0:01:21]}  b3 {[%clk 0:01:58]} 23. Nxd4 {[%clk 0:01:12]}  bxa2+ {[%clk 0:01:41]} 24. Ka1 {[%clk 0:01:09]}  Nb4 {[%clk 0:01:41]} 25. Bd3 {[%clk 0:00:45]}  Qa5 {[%clk 0:01:22]} 26. Bb5+ {[%clk 0:00:38]}  Qxb5 {[%clk 0:01:22]} 0-1


[Site "https://www.chess.com"]

[Event "Titled Tuesday Blitz May 4 2021"]
[White "Tikhonov, Viacheslav"]
[Black "Dejmek, Mark"]
[WhiteFideId "44196407"]
[BlackFideId "2017628"]
[WhiteElo "1773"]
[BlackElo "2206"]
[Result "1-0"]
[Round "01"]
[TimeControl "180+1"]
[Date "2021.05.04"]
[WhiteClock "0:00:55"]
[BlackClock "0:00:02"]

1. Nf3 {[%clk 0:02:57]}  c5 {[%clk 0:02:59]} 2. c4 {[%clk 0:02:57]}  Nf6 {[%clk 0:02:59]} 3. b3 {[%clk 0:02:56]}  g6 {[%clk 0:02:58]} 4. Bb2 {[%clk 0:02:57]}  Bg7 {[%clk 0:02:58]} 5. g3 {[%clk 0:02:57]}  b6 {[%clk 0:02:58]} 6. Bg2 {[%clk 0:02:58]}  Bb7 {[%clk 0:02:59]} 7. O-O {[%clk 0:02:57]}  O-O {[%clk 0:02:59]} 8. d4 {[%clk 0:02:57]}  cxd4 {[%clk 0:02:58]} 9. Nxd4 {[%clk 0:02:57]}  Bxg2 {[%clk 0:02:57]} 10. Kxg2 {[%clk 0:02:58]}  Qc8 {[%clk 0:02:54]} 11. f3 {[%clk 0:02:57]}  d5 {[%clk 0:02:50]} 12. cxd5 {[%clk 0:02:55]}  Nxd5 {[%clk 0:02:50]} 13. Qd2 {[%clk 0:02:49]}  Rd8 {[%clk 0:02:49]} 14. Na3 {[%clk 0:02:47]}  e5 {[%clk 0:02:40]} 15. Rac1 {[%clk 0:02:46]}  Qb7 {[%clk 0:02:32]} 16. e4 {[%clk 0:02:41]}  Ne7 {[%clk 0:01:59]} 17. Nab5 {[%clk 0:02:29]}  Na6 {[%clk 0:01:59]} 18. Qf2 {[%clk 0:02:07]}  exd4 {[%clk 0:01:57]} 19. Bxd4 {[%clk 0:02:07]}  Nc5 {[%clk 0:01:38]} 20. Bxc5 {[%clk 0:02:03]}  bxc5 {[%clk 0:01:36]} 21. Qxc5 {[%clk 0:02:00]}  a6 {[%clk 0:01:27]} 22. Nd6 {[%clk 0:01:54]}  Qd7 {[%clk 0:01:08]} 23. Rfd1 {[%clk 0:01:48]}  Nc8 {[%clk 0:00:53]} 24. Nxf7 {[%clk 0:01:12]}  Qxd1 {[%clk 0:00:34]} 25. Rxd1 {[%clk 0:01:13]}  Rxd1 {[%clk 0:00:33]} 26. Qc6 {[%clk 0:01:06]}  Rb8 {[%clk 0:00:28]} 27. Qe8+ {[%clk 0:01:05]}  Bf8 {[%clk 0:00:28]} 28. Ng5 {[%clk 0:01:04]}  Rb7 {[%clk 0:00:19]} 29. Qe6+ {[%clk 0:00:59]}  Kg7 {[%clk 0:00:12]} 30. Qxc8 {[%clk 0:00:57]}  Rdd7 {[%clk 0:00:12]} 31. Ne6+ {[%clk 0:00:57]}  Kf6 {[%clk 0:00:08]} 32. Nxf8 {[%clk 0:00:56]}  Re7 {[%clk 0:00:06]} 33. Qc3+ {[%clk 0:00:56]}  Kf7 {[%clk 0:00:05]} 34. Nxh7 {[%clk 0:00:56]}  Kg8 {[%clk 0:00:04]} 35. Ng5 {[%clk 0:00:56]}  Rg7 {[%clk 0:00:02]} 36. Qc8# {[%clk 0:00:55]} 1-0


[Site "https://www.chess.com"]